[Event "101st Irish Championship 2022"]
[Site "Dublin"]
[Date "2022.07.05"]
[Round "3.7"]
[White "Ivanov, Andrey A."]
[Black "Mats, Diana"]
[Result "0-1"]
[ECO "C02"]
[WhiteElo "2180"]
[BlackElo "2028"]
[Annotator "TA"]
[PlyCount "118"]
[EventDate "2022.07.05"]
[EventType "swiss"]
[EventCountry "IRL"]
[SourceTitle "playchess.com"]
[Source "ChessBase"]
[SourceQuality "1"]
[TimeControl "40/6300+30:1800+30"]

{[%evp 19,118,-11,-11,-27,-26,-26,-13,-8,-17,-112,-112,-112,-121,-135,-129,-178,-165,-202,-203,-213,-221,-225,-221,-212,-205,-205,-197,-195,-174,-166,-172,-154,-145,-185,-183,-191,-190,-190,-190,-189,-193,-187,-179,-209,-209,-209,-210,-210,-210,-210,-200,-380,-381,-841,-812,-755,-683,-1104,-1113,-1097,-1078,-1122,-1111,-1026,-1028,-1379,-1278,-2296,-2222,-1935,-1909,-1796,-1788,-1622,-1200,-2643,-2785,-29982,-29983,-29983,-29984,-29984,-29984,-29986,-29987,-29987,-29987,-29989,-29987,-29989,-29987,-29989,-29990,-29991,-29992,-29992,-29993,-29993,-29994,-29994,-29995]} 1. e4 {[%emt 0:00:01]} e6 {[%emt 0:00:21]} 2. d4 {[%emt 0:00:11]} d5 {[%emt 0:00:05]} 3. e5 {[%emt 0:00:05]} c5 {[%emt 0:00:15]} 4. c3 {[%emt 0:00:15]} Nc6 {[%emt 0:00:07]} 5. Nf3 {[%emt 0:00:12]} Qb6 {[%emt 0:00:53]} 6. a3 {[%emt 0:00:08]} c4 {[%emt 0:00:34]} 7. g3 {[%emt 0:00:39]} Na5 {[%emt 0:02:28]} 8. Nbd2 {[%emt 0:00:28]} Bd7 {[%emt 0:00:37]} 9. Bg2 {[%emt 0:00:37]} h6 {[%emt 0:02:11]} 10. O-O {[%emt 0:01:47]} Ne7 {[%emt 0:05:04]} 11. Ne1 {[%emt 0:08:13] C02: French: Advance Variation.} Nf5 {[%emt 0:04:56]} 12. Qe2 {[%emt 0:01:11]} O-O-O {[%emt 0:01:33]} 13. Nc2 {[%emt 0:01:13] [#] The position is equal.} f6 $146 {[%emt 0:11:33]} ({Predecessor:} 13... Be7 14. Ne3 Ba4 15. Re1 Nxe3 16. fxe3 Nb3 17. Nxb3 Qxb3 18. e4 Bc6 19. Rf1 Rhf8 20. exd5 Bxd5 21. Bxd5 Rxd5 {1-0 (36) Champagne,D-Smith,M USA 1982}) 14. Ne3 {[%emt 0:01:24]} (14. Nf3 $11) 14... Nxe3 $17 {[%emt 0:02:24] Black is more active.} 15. Qxe3 {[%emt 0:00:27] [#]} f5 $1 {[%emt 0:00:14]} 16. f4 {[%emt 0:03:03]} g5 {[%emt 0:01:48]} 17. fxg5 {[%emt 0:02:37]} (17. Bf3 $17) 17... hxg5 $19 {[%emt 0:00:07]} 18. Qxg5 {[%emt 0:02:12]} Bh6 {[%emt 0:02:18][%cal Bf8h6,Bh6e3,Be3c5][%mdl 32]} 19. Qe7 {[%emt 0:00:31]} Nc6 {[%emt 0:05:11][%csl LRe5,LRe7]} 20. Qc5 {[%emt 0:01:32]} Qxc5 {[%emt 0:08:02]} 21. dxc5 {[%emt 0:01:22]} Be3+ {[%emt 0:00:13]} 22. Kh1 {[%emt 0:00:23][%cal Od2c4]} Nxe5 {[%emt 0:00:28][%cal Oh8h2] [#] ( -> ...Rxh2+!)} 23. Nf3 {[%emt 0:22:15]} Nxf3 {[%emt 0:04:55]} 24. Bxf3 {[%emt 0:00:22]} Bxc5 {[%emt 0:03:30]} 25. Bf4 {[%emt 0:00:40]} Ba4 {[%emt 0:00:49]} 26. Rfe1 {[%emt 0:00:42]} Kd7 {[%emt 0:01:42]} 27. Re2 {[%emt 0:00:33]} Bd6 {[%emt 0:01:42]} 28. Bxd6 {[%emt 0:06:21]} Kxd6 {[%emt 0:00:22]} 29. Rae1 {[%emt 0:00:08]} Rh6 {[%emt 0:04:21]} 30. Kg2 {[%emt 0:02:58]} Rdh8 {[%emt 0:04:03]} 31. h4 {[%emt 0:01:28]} Rg8 {[%emt 0:02:29]} 32. h5 {[%emt 0:04:04]} Be8 {[%emt 0:03:57] aiming for ...f4.} 33. Re5 {[%emt 0:00:50][%cal Of3d5]} Bf7 {[%emt 0:01:39] ...f4 is the strong threat.} (33... Bxh5 34. Bxh5 Rxh5 35. Rxe6+ Kc5 36. Rf6 $17) 34. Kf2 {[%emt 0:02:03]} Rf6 {[%emt 0:04:57] Threatens to win with ...Rh8.} ({Not} 34... Bxh5 35. Bxh5 Rxh5 36. Rxe6+ Kc5 37. R1e2 $17) 35. Kg2 $2 {[%emt 0:04:36]} (35. R5e2 {only move.}) 35... Rg5 {[%emt 0:07:32]} 36. g4 $2 {[%emt 0:00:46]} (36. R1e2) 36... Bxh5 $1 {[%emt 0:01:30]} 37. a4 {[%emt 0:09:01]} Bxg4 {[%emt 0:00:20]} 38. Bxg4 {[%emt 0:00:08]} Rxg4+ {[%emt 0:00:05][%mdl 4096] Endgame KRR-KRR} 39. Kf3 {[%emt 0:00:34]} Rfg6 {[%emt 0:03:53]} 40. a5 {[%emt 0:01:53]} Rg3+ {[%emt 0:00:25]} 41. Kf2 {[%emt 0:30:21]} Rg2+ {[%emt 0:30:25]} 42. Kf3 {[%emt 0:00:14]} Rxb2 {[%emt 0:00:14]} 43. a6 {[%emt 0:00:11]} bxa6 {[%emt 0:01:09]} 44. R5e2 {[%emt 0:00:20]} Rxe2 {[%emt 0:00:47]} 45. Rxe2 {[%emt 0:00:13] KR-KR} Rg1 {[%emt 0:02:40] Hoping for ...Rc1.} 46. Ra2 {[%emt 0:00:34]} Rc1 {[%emt 0:00:26]} 47. Rxa6+ {[%emt 0:00:09]} Ke5 {[%emt 0:00:09]} 48. Rxa7 {[%emt 0:00:07]} Rxc3+ {[%emt 0:00:04] Black mates.} 49. Ke2 {[%emt 0:00:04]} f4 {[%emt 0:00:10][%cal Bf5f4,Bf4f3,Bf3f2][%mdl 32]} 50. Rh7 {[%emt 0:00:09]} Ke4 {[%emt 0:00:10]} 51. Kd2 {[%emt 0:00:10]} Rd3+ {[%emt 0:00:33]} 52. Ke2 {[%emt 0:00:50]} e5 {[%emt 0:00:12][%cal Be6e5,Be5e4,Be4e3][%mdl 32]} 53. Rh5 {[%emt 0:00:12]} f3+ {[%emt 0:00:07]} 54. Ke1 {[%emt 0:00:08]} Kd4 {[%emt 0:00:07]} 55. Rh2 {[%emt 0:00:09]} e4 {[%emt 0:00:04]} 56. Ra2 {[%emt 0:00:04]} e3 {[%emt 0:00:10]} 57. Ra1 {[%emt 0:00:18]} Ke4 {[%emt 0:00:14]} 58. Ra8 {[%emt 0:00:06]} f2+ {[%emt 0:00:19]} 59. Ke2 {[%emt 0:00:08]} Rd2+ {[%emt 0:00:06] Black took control after the opening.  Weighted Error Value: White=0.72/Black=0.04 (flawless)} 0-1

[Event "101st Irish Championship 2022"]
[Site "Dublin"]
[Date "2022.07.05"]
[Round "3.8"]
[White "Melaugh, Gavin"]
[Black "Keenan, Cathal"]
[Result "0-1"]
[ECO "E73"]
[WhiteElo "2020"]
[BlackElo "1811"]
[Annotator "TA"]
[PlyCount "58"]
[EventDate "2022.07.05"]
[EventType "swiss"]
[EventCountry "IRL"]
[SourceTitle "playchess.com"]
[Source "ChessBase"]
[SourceQuality "1"]
[TimeControl "40/6300+30:1800+30"]

{[%evp 13,58,56,64,52,66,67,68,43,70,60,63,18,62,60,57,62,54,55,87,22,45,44,79,30,115,115,114,125,203,174,212,-258,-263,-254,-91,-77,-85,-171,-193,-1179,-40,-29988,-29989,-29994,-29995,-29995,-29996]} 1. c4 {[%emt 0:00:03]} Nf6 {[%emt 0:00:08]} 2. Nc3 {[%emt 0:00:07]} g6 {[%emt 0:00:05]} 3. d4 {[%emt 0:00:38]} Bg7 {[%emt 0:00:18]} 4. e4 {[%emt 0:00:06]} d6 {[%emt 0:00:22]} 5. Be2 {[%emt 0:01:23]} O-O {[%emt 0:00:32]} 6. Be3 {[%emt 0:00:05]} e5 {[%emt 0:00:06]} 7. d5 {[%emt 0:00:03]} Na6 {[%emt 0:00:03]} 8. g4 {[%emt 0:00:19] E73: King's Indian: Averbakh Variation without 6...c5.} Nc5 {[%emt 0:00:05]} 9. f3 {[%emt 0:02:47]} a5 {[%emt 0:00:48] 9...h5 gains popularity.} 10. Qd2 {[%emt 0:01:35] White is slightly better.} a4 {[%emt 0:12:32]} 11. h4 {[%emt 0:04:00]} h5 {[%emt 0:00:10][%cal Rh5g4]} 12. Bg5 {[%emt 0:00:55] [#]} (12. g5 $5 {[%cal Rg5f6]}) 12... Qe8 $146 {[%emt 0:00:53][%cal Rh5g4]} ({Predecessor:} 12... hxg4 13. h5 gxh5 14. Rxh5 Nxh5 15. Bxd8 Rxd8 16. Qg5 Nf6 17. O-O-O Bd7 18. Kc2 Kf8 {½-½ (38) Araoun,S (2030)-Benhadi,A (2110) Tipaza 2019}) 13. O-O-O {[%emt 0:03:29]} hxg4 {[%emt 0:02:44] ...Nh5 is the strong threat.} 14. Bxf6 {[%emt 0:07:37]} Bxf6 {[%emt 0:01:19]} 15. fxg4 {[%emt 0:00:36]} Qe7 {[%emt 0:04:21]} 16. Kb1 {[%emt 0:04:07]} (16. g5 $16 Bg7 17. h5) 16... Bg7 $11 {[%emt 0:02:37]} 17. h5 {[%emt 0:06:13]} f5 {[%emt 0:01:02]} 18. Nf3 {[%emt 0:14:18]} (18. hxg6 fxg4 19. Bd3 (19. Rh7 $2 Rf4 $19) 19... Qf6 $17) ({Better is} 18. gxf5 $16 gxf5 19. Qe3 (19. h6 Bf6 $11)) 18... fxe4 {[%emt 0:41:33]} (18... Nxe4 19. Nxe4 fxe4 20. Nh4 $16) (18... fxg4 $11 19. Nh4 Rf4 20. Nxg6 Qg5) 19. Nh4 $1 $16 {[%emt 0:00:18]} Rf4 {[%emt 0:02:15]} (19... gxh5 $2 20. Ng6 Qf6 21. Nxf8 Bxf8 22. Rdf1 $18 (22. gxh5 Bf5 $11) (22. Rxh5 Bd7 $18)) 20. Nxg6 {[%emt 0:01:30]} Qf6 {[%emt 0:02:04]} (20... Qg5 $16) 21. g5 {[%emt 0:05:27]} (21. Nxf4 exf4 22. Rdf1 Bh6 $16) 21... Qf7 {[%emt 0:12:15][%cal Oc8f5]} 22. Nxf4 $4 {[%emt 0:03:44][%mdl 8192]} (22. Nh4 $18 {and all is fine.}) 22... exf4 $19 {[%emt 0:00:25]} 23. g6 {[%emt 0:04:11]} Qf8 {[%emt 0:04:41]} (23... Qf6 $1 $19 {is more deadly.} 24. a3 e3) 24. h6 $17 {[%emt 0:22:27]} Bxh6 {[%emt 0:01:13] Hoping for ...e3.} 25. g7 {[%emt 0:06:22]} (25. Qd4 $2 Bg7 26. Qf2 f3 $19) (25. a3 $17) 25... Qf6 $1 $19 {[%emt 0:06:30][%mdl 1024] aiming for ...e3. Black has strong compensation. The board is on fire.} ({Don't play} 25... Bxg7 26. Rh5 (26. Rdg1 e3 $17) 26... f3 27. Rg1 $1 fxe2 28. Nxe2 $16) 26. Rdf1 $2 {[%emt 0:12:51] [#]} ({Avoid the trap} 26. Rdg1 $2 e3 27. Ne4 (27. Qc2 $2 Bf5 $19) 27... Nxe4 $19) (26. a3) 26... Bf5 $2 {[%emt 0:04:43]} ({Black should try} 26... e3 $1 $19 {[%cal Re3d2]} 27. Ne4 Nxe4) 27. Qe1 {[%emt 0:02:59][%mdl 8192]} (27. Rxf4 $15 e3+ 28. Rxf5 Qxf5+ 29. Qc2 Qxc2+ 30. Kxc2 Kxg7 31. Nb5) 27... e3+ {[%emt 0:02:16] Black mates.} 28. Kc1 {[%emt 0:00:00] [#]} Nb3+ $1 {[%emt 0:00:46][%mdl 512]} 29. axb3 {[%emt 0:02:21]} axb3 {[%emt 0:00:06] Weighted Error Value: White=1.03/Black=0.44} 0-1

[Event "101st Irish Championship 2022"]
[Site "Dublin"]
[Date "2022.07.05"]
[Round "3.9"]
[White "Cafolla, Peter"]
[Black "Doyle, Anthony"]
[Result "1/2-1/2"]
[ECO "C96"]
[WhiteElo "1937"]
[BlackElo "2116"]
[Annotator "TA"]
[PlyCount "56"]
[EventDate "2022.07.05"]
[EventType "swiss"]
[EventCountry "IRL"]
[SourceTitle "playchess.com"]
[Source "ChessBase"]
[SourceQuality "1"]
[TimeControl "40/6300+30:1800+30"]

{[%evp 21,56,2,39,39,32,31,28,50,49,22,62,69,104,70,77,90,139,100,212,207,221,248,258,185,153,129,173,99,89,91,95,6,17,17,17,18,17]} 1. e4 {[%emt 0:00:30]} e5 {[%emt 0:00:30]} 2. Nf3 {[%emt 0:00:30]} Nc6 {[%emt 0:00:30]} 3. Bb5 {[%emt 0:00:30]} a6 {[%emt 0:00:30]} 4. Ba4 {[%emt 0:00:30]} Nf6 {[%emt 0:00:30]} 5. O-O {[%emt 0:00:30]} Be7 {[%emt 0:00:55]} 6. Re1 {[%emt 0:00:18]} b5 {[%emt 0:00:39]} 7. Bb3 {[%emt 0:00:09]} d6 {[%emt 0:01:28]} 8. a4 {[%emt 0:00:54]} Rb8 {[%emt 0:06:45]} 9. c3 {[%emt 0:08:55]} O-O {[%emt 0:00:13]} 10. h3 {[%emt 0:00:07]} Na5 {[%emt 0:05:45]} 11. Bc2 {[%emt 0:02:00]} c5 {[%emt 0:00:14]} 12. axb5 {[%emt 0:02:20] C96: Closed Ruy Lopez: Chigorin Defence: 11 d4, replies other than 11...Qc7.} axb5 {[%emt 0:00:07]} 13. d4 {[%emt 0:01:22]} cxd4 {[%emt 0:09:49]} 14. cxd4 {[%emt 0:00:08] White has an edge.} Qc7 {[%emt 0:00:59] [#]} 15. Nbd2 $146 {[%emt 0:14:28][%cal Bb1d2,Bd2f3,Bf3d4][%mdl 32]} ({Predecessor:} 15. dxe5 dxe5 16. Nxe5 Qxe5 17. Rxa5 Bb4 18. Ra1 Bxe1 19. Qxe1 Bb7 20. Nd2 Rfe8 21. Ra3 {½-½ (27) Seres,L (2400)-Felegyhazi,L (2282) Balatonlelle 2006}) 15... exd4 {[%emt 0:10:26]} 16. Nxd4 {[%emt 0:00:12]} Nc6 {[%emt 0:00:18]} 17. N2f3 {[%emt 0:05:45]} Nxd4 {[%emt 0:04:34]} 18. Nxd4 {[%emt 0:01:24]} g6 {[%emt 0:05:20]} (18... Nd7 $142) 19. Bg5 {[%emt 0:15:57]} Kg7 {[%emt 0:07:57]} (19... Bb7 $16) 20. Ra3 {[%emt 0:02:53]} Bd7 {[%emt 0:02:35]} 21. Qd2 {[%emt 0:04:56]} Ng8 {[%emt 0:04:30]} 22. Bxe7 {[%emt 0:10:38]} Nxe7 {[%emt 0:00:13]} 23. b4 {[%emt 0:03:47] 0x0.0019e972f7b4dp-1022s more active pieces.} Ra8 {[%emt 0:18:25]} 24. Rea1 {[%emt 0:03:41]} (24. Rc3 $18 Qb7 25. Nf5+ $1 {[%mdl 512]} gxf5 26. Qxd6) 24... Rxa3 $16 {[%emt 0:02:13]} 25. Rxa3 {[%emt 0:35:36]} Rc8 {[%emt 0:01:07][%cal Bf8c8,Bc8c1,Bc1d1][%mdl 32]} 26. Bd3 {[%emt 0:00:00]} (26. Rf3 $16 {Black must now prevent Qf4.} Qc4 {[#]} 27. Qf4 $1 Qxd4 28. Qxf7+ Kh6 29. Qxe7) 26... Qc1+ {[%emt 0:07:00] The position is equal.} 27. Qxc1 {[%emt 0:00:00]} Rxc1+ {[%emt 0:00:04]} 28. Kh2 {[%emt 0:00:00]} Rd1 {[%emt 0:00:54] Weighted Error Value: White=0.32/Black=0.27 (precise)} 1/2-1/2

[Event "101st Irish Championship 2022"]
[Site "Dublin"]
[Date "2022.07.05"]
[Round "3.10"]
[White "O`cuilleanain, Oisin"]
[Black "Kennedy, John"]
[Result "1-0"]
[ECO "D30"]
[WhiteElo "1936"]
[BlackElo "2047"]
[Annotator "TA"]
[PlyCount "69"]
[EventDate "2022.07.05"]
[EventType "swiss"]
[EventCountry "IRL"]
[SourceTitle "playchess.com"]
[Source "ChessBase"]
[SourceQuality "1"]
[TimeControl "40/6300+30:1800+30"]

{[%evp 21,69,32,49,45,66,0,31,36,35,36,35,23,46,63,36,44,50,40,49,34,98,97,197,194,246,231,263,262,294,281,283,285,284,274,305,317,310,285,448,430,452,275,458,470,957,494,1654,1485,29992,29993]} 1. d4 {[%emt 0:00:02]} d5 {[%emt 0:00:03]} 2. c4 {[%emt 0:00:06]} e6 {[%emt 0:00:03]} 3. Nf3 {[%emt 0:00:06]} c5 {[%emt 0:00:04]} 4. cxd5 {[%emt 0:00:06]} exd5 {[%emt 0:00:04]} 5. Bg5 {[%emt 0:00:16]} Be7 {[%emt 0:03:16]} 6. Bxe7 {[%emt 0:00:12]} Nxe7 {[%emt 0:00:12]} 7. dxc5 {[%emt 0:00:19]} Qa5+ {[%emt 0:00:10]} 8. Nc3 {[%emt 0:00:07]} Nbc6 {[%emt 0:02:27]} 9. e3 {[%emt 0:01:33]} Qxc5 {[%emt 0:01:13]} 10. Be2 {[%emt 1:47:43]} O-O {[%emt 0:00:36]} 11. O-O {[%emt 0:00:00]} Be6 {[%emt 0:03:07]} 12. Rc1 {[%emt 0:00:00] D30: Queen's Gambit Declined: Systems without Nc3.} Rad8 {[%emt 0:09:03] [#]} 13. Qd2 $146 {[%emt 0:00:00]} (13. Na4 $14 Qd6 14. Nc5) ({Predecessor:} 13. Na4 Qd6 14. Nc5 Bc8 15. Qa4 Qf6 16. b4 Bg4 17. a3 b6 18. Nb3 Qb2 19. b5 Qxe2 20. bxc6 Bxf3 {1-0 (50) Teske,H (2523)-Udeshi,A (2281) Sort 2009}) 13... Qa5 {[%emt 0:14:21][%cal Od5d4]} (13... d4 $5 {[%cal Rd4c3]} 14. Nb5 Qb6 $11) 14. Rfd1 {[%emt 0:00:00] White is slightly better.} Nf5 {[%emt 0:03:44]} 15. Nb5 {[%emt 0:00:00] Against d4} Qb6 {[%emt 0:01:59][%cal Od5d4]} 16. Nfd4 {[%emt 0:00:00]} a6 {[%emt 0:05:05]} 17. Nxc6 {[%emt 0:00:00]} bxc6 {[%emt 0:00:10]} 18. Nd4 {[%emt 0:00:00]} c5 {[%emt 0:02:39]} 19. Nxf5 {[%emt 0:00:00]} Bxf5 {[%emt 0:00:48]} 20. Qc3 $36 {[%emt 0:00:00][%mdl 2048] White is pushing.} h6 {[%emt 0:21:26]} ({Black should play} 20... c4 $14) 21. b3 $16 {[%emt 0:00:00]} d4 {[%emt 0:23:27]} (21... c4 $16) 22. Qxc5 $18 {[%emt 0:00:00]} Qg6 {[%emt 0:00:54]} (22... Qxc5 $142 23. Rxc5 d3) 23. Rxd4 {[%emt 0:00:00]} Rc8 {[%emt 0:02:06]} 24. Qa3 {[%emt 0:00:00]} Be4 {[%emt 0:00:20][%csl Ge4][%cal Rg6g2] [#]} 25. Bf1 {[%emt 0:00:00]} Bb7 {[%emt 0:00:49]} 26. Rxc8 {[%emt 0:00:00]} Rxc8 {[%emt 0:00:05]} 27. Qb4 {[%emt 0:00:00]} Ba8 {[%emt 0:08:33]} 28. Qd2 {[%emt 0:00:00] [#] And now Rd8+ would win.} Kh7 {[%emt 0:09:23]} 29. Rd6 {[%emt 0:00:00]} Qg5 {[%emt 0:00:15]} (29... Qb1 {was called for.} 30. Qd3+ Be4 31. Qxb1 (31. Qxa6 Rc2 $11) 31... Bxb1) 30. f4 {[%emt 0:00:00]} Qg4 {[%emt 0:01:18]} 31. Qe2 {[%emt 0:00:00]} Qh4 {[%emt 0:00:09]} (31... Qf5 32. Qxa6 Be4) 32. Qd3+ {[%emt 0:00:00]} g6 {[%emt 0:01:05]} (32... Kg8 $142 33. Qxa6 Re8) 33. f5 {[%emt 0:00:00][%cal Rf5g6]} Be4 {[%emt 0:00:11]} (33... Qe4 $142 34. fxg6+ Kg7 35. gxf7 Qxd3 36. Bxd3 a5) 34. fxg6+ {[%emt 0:00:00]} fxg6 {[%emt 0:00:50]} 35. Rd7+ {[%emt 0:00:00] Weighted Error Value: White=0.29 (precise) /Black=0.79} 1-0

[Event "101st Irish Championship 2022"]
[Site "Dublin"]
[Date "2022.07.05"]
[Round "3.11"]
[White "O`Gorman, Alice"]
[Black "Goss, Alex"]
[Result "0-1"]
[ECO "A19"]
[WhiteElo "2043"]
[BlackElo "1859"]
[Annotator "TA"]
[PlyCount "54"]
[EventDate "2022.07.05"]
[EventType "swiss"]
[EventCountry "IRL"]
[SourceTitle "playchess.com"]
[Source "ChessBase"]
[SourceQuality "1"]
[TimeControl "40/6300+30:1800+30"]

{[%evp 9,54,14,10,6,6,8,4,4,6,13,12,10,10,12,10,-2,5,-131,-45,-115,-111,-105,-126,-200,-206,-271,-289,-333,-252,-248,-246,-251,-220,-206,-205,-1306,-1293,-29985,-29985,-6012,-1093,-29974,-29975,-29994,-838,-838,-796]} 1. c4 {[%emt 0:00:01]} e6 {[%emt 0:00:07]} 2. Nc3 {[%emt 0:00:07]} c5 {[%emt 0:00:05]} 3. e4 {[%emt 0:00:57]} Nc6 {[%emt 0:00:09]} 4. g3 {[%emt 0:00:51]} Nf6 {[%emt 0:00:08]} 5. Bg2 {[%emt 0:00:32]} d5 {[%emt 0:00:17]} 6. exd5 {[%emt 0:00:50] A19: English Opening: Flohr-Mikenas System with 3...c5.} exd5 {[%emt 0:00:07]} 7. cxd5 {[%emt 0:00:36]} Nb4 {[%emt 0:00:23]} 8. d3 {[%emt 0:00:36][%cal Bd2d3,Bd3d4][%mdl 32] The position is equal.} Nbxd5 {[%emt 0:00:15]} 9. Nge2 {[%emt 0:02:48]} Be7 {[%emt 0:01:21]} 10. O-O {[%emt 0:01:18]} O-O {[%emt 0:00:50]} 11. d4 {[%emt 0:04:16] [#]} Be6 $146 {[%emt 0:04:11][%cal Bc8e6,Be6d5,Bd5c6][%mdl 32]} ({Predecessor:} 11... Nxc3 12. bxc3 Qc7 13. Bf4 Bd6 14. Bg5 Be7 15. Qb3 Rb8 16. Rac1 b6 17. Rfd1 Bb7 {½-½ (42) Lavrinovitsh,D (2078)-Klevets,K (1834) St Petersburg 2018}) 12. Nxd5 {[%emt 0:05:33]} Bxd5 {[%emt 0:00:35]} (12... Nxd5 {seems wilder.} 13. Nf4 Nxf4 14. Bxf4 Qxd4 15. Bxb7 Rad8) 13. f3 {[%emt 0:05:08]} (13. dxc5 $11 Bxg2 14. Kxg2) 13... Rc8 {[%emt 0:04:28]} (13... cxd4 $17 {And now ...Re8 would win.} 14. Qd3 Re8 15. Nxd4 Bc5) 14. Kh1 {[%emt 0:02:46]} (14. Be3 $15) 14... Qb6 $17 {[%emt 0:08:09]} 15. Re1 {[%emt 0:07:13]} cxd4 {[%emt 0:04:58] Black is more active.} 16. Qxd4 {[%emt 0:06:39] [#]} (16. Nxd4 $17 Bc5 17. Nb3) 16... Bc5 $1 $19 {[%emt 0:01:20]} 17. Qa4 {[%emt 0:06:20]} Bc6 {[%emt 0:07:45]} 18. Qh4 {[%emt 0:16:02]} Bf2 {[%emt 0:06:24]} 19. Rd1 {[%emt 0:03:22]} Rfd8 {[%emt 0:08:33]} 20. Bg5 {[%emt 0:04:23]} Rxd1+ {[%emt 0:01:57]} 21. Rxd1 {[%emt 0:00:20]} Qxb2 $40 {[%emt 0:00:10][%mdl 128] Black has strong attack.} 22. Bxf6 $2 {[%emt 0:03:43] [#]} (22. Qc4) 22... Qxe2 {[%emt 0:01:14]} 23. Rg1 {[%emt 0:05:27]} Bxf3 {[%emt 0:03:57]} ({Stronger than} 23... Bxg1 24. Qg4 Kf8 25. Bxg7+ Ke7 26. Qxc8 $11) 24. Qh3 {[%emt 0:02:38]} Rc6 {[%emt 0:00:55]} (24... Bg4 $142 25. Qh4 Be3) 25. Bg5 {[%emt 0:00:51]} Bxg1 {[%emt 0:01:03]} 26. Kxg1 {[%emt 0:01:11]} Qxg2+ {[%emt 0:00:14]} (26... Qd1+ $142 27. Kf2 Rc2+ 28. Bd2 Rxd2+ 29. Ke3 Qe2+ 30. Kf4 Qe4+ 31. Kg5 f6#) 27. Qxg2 {[%emt 0:00:06]} Bxg2 {[%emt 0:00:05] Weighted Error Value: White=1.16/Black=0.74} 0-1

[Event "101st Irish Championship 2022"]
[Site "Dublin"]
[Date "2022.07.05"]
[Round "3.12"]
[White "Keogh, Eamon"]
[Black "Liu, Jason"]
[Result "1/2-1/2"]
[ECO "C02"]
[WhiteElo "1931"]
[BlackElo "1746"]
[Annotator "TA"]
[PlyCount "72"]
[EventDate "2022.07.05"]
[EventType "swiss"]
[EventCountry "IRL"]
[SourceTitle "playchess.com"]
[Source "ChessBase"]
[SourceQuality "1"]
[TimeControl "40/6300+30:1800+30"]

{[%evp 13,72,17,41,-47,-45,-56,-44,-46,-18,-91,-59,-68,-21,-68,-30,-76,-33,-83,-85,-80,-77,-81,-80,-92,-72,-83,-74,-159,-170,-171,-161,-191,-62,-74,-44,-98,-89,-176,-184,-166,-55,-78,-62,-88,-95,-97,-71,-98,-77,-92,-74,-112,0,0,0,0,0,0,0,0,116]} 1. e4 {[%emt 0:03:55]} e6 {[%emt 0:00:09]} 2. d4 {[%emt 0:01:24]} d5 {[%emt 0:00:19]} 3. e5 {[%emt 0:00:10]} c5 {[%emt 0:00:21]} 4. c3 {[%emt 0:00:21]} Nc6 {[%emt 0:00:24]} 5. Nf3 {[%emt 0:01:02]} Bd7 {[%emt 0:00:35]} 6. Be2 {[%emt 0:00:40]} Qb6 {[%emt 0:01:24]} 7. O-O {[%emt 0:00:31]} Nge7 {[%emt 0:02:34]} 8. a4 {[%emt 0:00:40] [#] C02: French: Advance Variation.} (8. dxc5 $14 Qxc5 9. Be3) 8... cxd4 $146 {[%emt 0:07:43]} ({Predecessor:} 8... Ng6 9. h3 Be7 10. Na3 O-O 11. Rb1 cxd4 12. cxd4 Bxa3 13. bxa3 Qxb1 14. Bd3 Qb6 15. Be3 Rac8 16. Qd2 h6 17. Bxh6 gxh6 18. Qxh6 Nce7 19. Ng5 Rfd8 20. Qh7+ Kf8 21. Qxf7# {1-0 (21) Ulker,C-Hiranandani,J Al Ain 2013}) 9. a5 {[%emt 0:04:55]} Nxa5 {[%emt 0:32:27] ...Nb3 is the strong threat.} 10. Nxd4 {[%emt 0:00:27] Black is slightly better.} Nec6 {[%emt 0:05:59]} 11. Be3 {[%emt 0:07:15]} (11. Nf3 $11 {remains equal.}) 11... Nxd4 {[%emt 0:05:15]} ({Much weaker is} 11... Nxe5 12. Nxe6 Qxe6 13. Rxa5 $11) (11... Qxb2 {is interesting.} 12. Nd2 a6 13. Qb1 Qxb1 14. Rfxb1 Bc8) 12. Bxd4 {[%emt 0:00:22]} Qd8 {[%emt 0:04:37]} (12... Qc7 $1 $15) 13. Na3 {[%emt 0:02:57]} (13. f4 $11) 13... Nc6 {[%emt 0:13:47]} 14. f4 {[%emt 0:07:59]} (14. c4 $1 $11 {feels stronger.}) 14... Be7 {[%emt 0:09:55]} 15. Nc2 {[%emt 0:04:07]} (15. Bf2 $15) 15... Nxd4 $17 {[%emt 0:03:20]} 16. Nxd4 {[%emt 0:08:27]} O-O {[%emt 0:06:01]} 17. Kh1 {[%emt 0:01:11]} Bc5 {[%emt 0:01:36]} 18. Bd3 {[%emt 0:08:54]} Bxd4 {[%emt 0:02:59]} 19. cxd4 {[%emt 0:00:03]} Qb6 {[%emt 0:01:11][%csl LRb2,LRd4]} 20. f5 {[%emt 0:05:01]} (20. Rf3 $142 g6 21. Bf1) 20... exf5 {[%emt 0:01:38]} (20... Qxd4 $2 21. fxe6 Qxe5 22. exd7 $18) ({Don't do} 20... Qxb2 21. Rb1 Qc3 22. f6 $18) 21. Bxf5 {[%emt 0:00:24]} Bxf5 {[%emt 0:00:21]} 22. Rxf5 {[%emt 0:00:02]} Qe6 {[%emt 0:02:00]} (22... Qxb2 $19 {And now ...Qb6 would win.} 23. Rb1 Qc3 24. Rxb7 Qc8) 23. Qd3 {[%emt 0:00:45]} f6 {[%emt 0:02:26]} 24. Raf1 {[%emt 0:01:17]} ({Much worse is} 24. Rh5 g6 25. Qh3 Qe7 $17) (24. h3 $15) 24... fxe5 {[%emt 0:01:22]} 25. dxe5 {[%emt 0:02:15] [#]} (25. Rxe5 $17 Qg6 26. Ref5) 25... Rxf5 $1 $19 {[%emt 0:01:02]} 26. Rxf5 {[%emt 0:00:26]} Rf8 {[%emt 0:03:32]} (26... a6 $19 27. h3 Rd8) 27. Rxf8+ $15 {[%emt 0:00:19]} Kxf8 {[%emt 0:00:03][%mdl 4096] Endgame KQ-KQ} 28. Qd4 {[%emt 0:00:07]} b6 {[%emt 0:00:56]} 29. h3 {[%emt 0:00:11]} Kg8 {[%emt 0:00:56]} 30. b4 {[%emt 0:01:02]} Qc6 {[%emt 0:00:43]} 31. Qg4 {[%emt 0:00:38]} h6 {[%emt 0:01:40]} 32. e6 {[%emt 0:00:08] [#]} Qd6 {[%emt 0:00:14]} (32... Qc1+ $1 $17 33. Kh2 g5) 33. Qf5 $11 {[%emt 0:00:13] White threatens Qf7+ and mate. The position is equal.} Qe7 {[%emt 0:00:27] Inhibits Qf7+.} 34. Qxd5 {[%emt 0:00:10]} a5 {[%emt 0:00:33]} 35. bxa5 {[%emt 0:01:56]} bxa5 {[%emt 0:00:07]} 36. Qxa5 {[%emt 0:02:36]} Kf8 {[%emt 0:04:54] Weighted Error Value: White=0.33/Black=0.24 (precise)} (36... Qxe6 $11 37. Qc5 g5) 1/2-1/2